Cogmind - Beta 13 @@@ ROGUE MODE // 2024.03.31 @ 22:07:35 Player: MasterLemons Result: Destroyed by Y-45 Defender with Heavy Assault Rifle Performance ------------- Evolutions (1) 500 Regions Visited (2) 400 Robots Destroyed (40) 200 Value Destroyed (978) 978 Prototype IDs (3) 60 Alien Tech Used (0) 0 Bonus (0) 0 TOTAL SCORE: 2138 Bonus ------- None Cogmind --------- Core Integrity 0/400 Matter 300/300 Energy 100/100 System Corruption 0% Temperature Cool (27) Movement Core (50) Location -9/Materials Parts ------- > --- POWER (1) -------- (None) > --- PROPULSION (3) --- (None) > --- UTILITY (3) ------ Signal Interpreter Hacking Suite > --- WEAPON (2) ------- (None) > --- INVENTORY (5) ---- Improved Aluminum Leg Peak State ------------ > --- POWER ------------ Light Nuclear Core > --- PROPULSION ------- Light Treads Light Treads > --- UTILITY ---------- Small Storage Unit Hacking Suite > --- WEAPON ----------- Particle Gun Assault Rifle > --- INVENTORY -------- Ion Engine Light Ion Engine Small Laser Mining Claw [Rating: 12] Favorites ----------- Power Ion Engine Engine Ion Engine Power Core Light Nuclear Core Propulsion Aluminum Leg Treads Light Treads Leg Aluminum Leg Utility Small Storage Unit Storage Small Storage Unit Processor Signal Interpreter Hackware Hacking Suite Weapon Small Laser Energy Gun Small Laser Ballistic Gun Assault Rifle Slashing Weapon Mining Claw Build | -11 -10 -9 ------- Run | Yrd Mat Mat Slots Evolved 2 | . . 2 Power . | . . . Propulsion 1 | . . 1 Utility 1 | . . 1 Weapon . | . . . Parts Attached 32 | 3 20 9 Power 6 | 1 4 1 Engine 5 | 1 3 1 Core 1 | . 1 . Reactor . | . . . Propulsion 9 | 2 4 3 Treads 2 | 2 . . Leg 7 | . 4 3 Wheel . | . . . Hover . | . . . Flight . | . . . Utility 5 | . 4 1 Device . | . . . Storage 1 | . 1 . Processor 2 | . 1 1 Hackware 2 | . 2 . Protection . | . . . Artifact . | . . . Weapon 12 | . 8 4 Energy Gun 10 | . 7 3 Energy Cannon . | . . . Ballistic Gun 1 | . 1 . Ballistic Cannon . | . . . Launcher . | . . . Special Weapon . | . . . Impact Weapon . | . . . Slashing Weapon 1 | . . 1 Piercing Weapon . | . . . Special Melee Weapon . | . . . Unidentified Prototypes . | . . . Parts Lost 22 | . 10 12 Power 4 | . 2 2 Propulsion 9 | . 4 5 Utility 2 | . 1 1 Weapon 7 | . 3 4 Highest Loss Streak 9 | . 9 7 To Critical Strikes . | . . . Average Slot Usage (%) 88 | . 92 69 Engine 10 | . 11 6 Treads 11 | . 14 . Leg 12 | . 11 19 Storage 13 | . 14 11 Processor 2 | . 2 2 Hackware 8 | . 8 11 Energy Gun 19 | . 19 17 Ballistic Gun 6 | . 7 . Naked Turns . | . . . Heaviest Build 15 | 3 15 12 Greatest Support 40 | 40 40 30 Greatest Overweight (x) 4 | . 4 2 Average Overweight (x) . | . . . Largest Inventory Capacity 8 | 5 8 8 Average Capacity 7 | 5 7 8 Most Carried 5 | 4 5 3 Average Carried 2 | 2 2 1 Final Capacity 8 | 5 8 5 Final Carried 4 | 4 1 1 Class Distribution -------------------- 53% | Mutant 46% | Scavenger-Mutant Dominant Class ---------------- Mutant | -10/Materials Scavenger-Mutant | -9/Materials Resources | -11 -10 -9 ----------- Run | Yrd Mat Mat Matter Collected 638 | 202 366 70 Remotely . | . . . Salvage Created 1197 | . 785 412 Parts 82 | . 57 25 Haulers Intercepted . | . . . Recyclers Shooed . | . . . Parts Field Recycled . | . . . Retrieved Matter . | . . . Parts Self-Destructed . | . . . Prevented . | . . . Kills | -11 -10 -9 ------- Run | Yrd Mat Mat Combat Hostiles Destroyed 31 | . 19 12 Melee 1 | . . 1 Guns 30 | . 19 11 Classes Destroyed 7 | . 5 2 Worker 2 | . 2 . Operator 3 | . 3 . Watcher 4 | . 3 1 Swarmer 9 | . 5 4 Grunt 20 | . 14 6 Brawler 1 | . . 1 Sentry 1 | . . 1 Best Kill Streak 5 | . 4 5 Combat Bots Only 4 | . 4 4 Max Kills in Single Turn 2 | . 2 2 Gunslinging 1 | . 1 1 Exploded . | . . . Melee 1 | . . 1 Uniques/NPCs Destroyed . | . . . Combat | -11 -10 -9 -------- Run | Yrd Mat Mat Hostile Shots Fired 321 | . 164 157 Missed 83 | . 54 29 Damage Taken 2513 | . 1197 1316 Core 618 | . 218 400 Absorbed by Shields . | . . . Core Remaining (%) 56 | 100 12 . Volleys Fired 133 | . 79 54 Largest 2 | . 2 2 Hottest 85 | . 85 80 Shots Fired 226 | . 145 81 Gun 226 | . 145 81 Cannon . | . . . Launcher . | . . . Special . | . . . Kinetic 59 | . 59 . Thermal 167 | . 86 81 Explosive . | . . . Electromagnetic . | . . . Robot Hit Streak 18 | . 11 18 Robot Miss Streak 10 | . 4 10 Penetration Max . | . . . Secondary Targets 5 | . 3 2 Max Gunslinging Chain 1 | . 1 1 Shots Hit Robots 137 | . 85 52 Core Hits 70 | . 42 28 Critical Kills 1 | . 1 . Critical Parts Destroyed . | . . . Critical Strikes 1 | . 1 . Destroy 1 | . 1 . Melee Attacks . | . . . Impact . | . . . Slashing . | . . . Piercing . | . . . Sneak Attacks . | . . . Combat Hostiles . | . . . Follow-up Attacks . | . . . Damage Inflicted 1748 | . 1104 644 Guns 1725 | . 1102 623 Cannons . | . . . Explosions . | . . . Melee . | . . . Ramming 23 | . 2 21 Kinetic 485 | . 485 . Thermal 1240 | . 617 623 Explosive . | . . . Electromagnetic . | . . . Impact . | . . . Slashing . | . . . Piercing . | . . . Highest Corruption 2 | . 2 . Average Corruption 2 | . 2 . Corruption Purged . | . . . Corruption Blocked . | . . . Overload Shots . | . . . Overflow Damage . | . . . Projectiles . | . . . Explosions . | . . . Melee . | . . . Knockbacks . | . . . Impact . | . . . Kinetic . | . . . Secondary . | . . . Self-Inflicted Damage 5 | . . 5 Shots . | . . . Rammed 5 | . . 5 Targets Rammed 15 | . 2 13 Kicked 9 | . 1 8 Crushed 1 | . 1 . Highest Temperature 225 | . 162 225 Average Temperature 49 | . 39 72 Received Heat Transfer 1044 | . 630 414 Siege Activations . | . . . Robots Corrupted . | . . . Combat Hostiles . | . . . Parts Fried . | . . . Impact Corruptions . | . . . Robots Melted . | . . . Combat Hostiles . | . . . Parts Melted 3 | . 1 2 Heat Transferred 3013 | . 1588 1425 Parts Sabotaged . | . . . Parts Stolen . | . . . Parts Stripped . | . . . Power Chain Reactions . | . . . Alert | -11 -10 -9 ------- Run | Yrd Mat Mat Peak Influence 278 | . 233 278 Initial 31 | . . 31 Average 113 | . 106 166 Maximum Alert Level 1 | . 1 1 Low Security (%) 88 | 100 96 56 Level 1 11 | . 3 43 Level 2 . | . . . Level 3 . | . . . Level 4 . | . . . Level 5 . | . . . High Security . | . . . Max Security . | . . . Squads Dispatched 7 | . 6 1 Investigation 3 | . 3 . Extermination . | . . . Reinforcement 4 | . 3 1 Assault . | . . . Garrison . | . . . Intercept . | . . . Searches Triggered . | . . . Construction Impeded . | . . . Haulers Reinforced . | . . . Active Scanning Responses . | . . . Cargo Convoy Interrupts . | . . . Stealth | -11 -10 -9 --------- Run | Yrd Mat Mat Distress Signals 2 | . . 2 Communications Jammed . | . . . Distress Signals . | . . . Times Spotted 60 | . 32 28 Peak Tracking Total 8 | . 4 8 Tactical Retreats 2 | . 1 1 Traps | -11 -10 -9 ------- Run | Yrd Mat Mat Traps Triggered 2 | . 2 . Indirectly . | . . . Trap Hack Attempts . | . . . Triggered . | . . . Disarmed . | . . . Reprogrammed 6 | . 6 . Reused 2 | . 2 . Traps Extracted . | . . . Installed . | . . . Triggered 2 | . 2 . Machines | -11 -10 -9 ---------- Run | Yrd Mat Mat Machines Disabled . | . . . Max in Single Turn . | . . . Machines Repaired . | . . . Machines Dismantled . | . . . Machines Sabotaged . | . . . Overloaded Fab Kills . | . . . Hacking | -11 -10 -9 --------- Run | Yrd Mat Mat Machines Accessed 9 | . 8 1 Terminals 7 | . 6 1 Fabricators . | . . . Repair Stations . | . . . Recycling Units 2 | . 2 . Scanalyzers . | . . . Garrison Access . | . . . Total Hacks 24 | . 22 2 Successful 17 | . 16 1 Failed 7 | . 6 1 Catastrophic 2 | . 2 . Database Lockouts . | . . . Manual . | . . . Terminals 19 | . 17 2 Fabricators . | . . . Repair Stations . | . . . Recycling Units 5 | . 5 . Scanalyzers . | . . . Garrison Access . | . . . Terminal Hacks 13 | . 12 1 Prototype ID Bank 2 | . 2 . Level Access Points 1 | . . 1 Locate Traps 2 | . 2 . Reprogram Traps 2 | . 2 . Dispatch Records 1 | . 1 . Maintenance Status 1 | . 1 . Recall Reinforcements 2 | . 2 . Zone Layout 2 | . 2 . Fabricator Hacks . | . . . Repair Station Hacks . | . . . Recycling Unit Hacks 4 | . 4 . Report Inventory 1 | . 1 . Retrieve Matter 2 | . 2 . Retrieve Components 1 | . 1 . Scanalyzer . | . . . Garrison Access Hacks . | . . . Unauthorized Hacks . | . . . Terminals . | . . . Fabricators . | . . . Repair Stations . | . . . Recycling Units . | . . . Scanalyzers . | . . . Garrison Access . | . . . Data Cores Recovered . | . . . Used . | . . . Hacking Detections 7 | . 6 1 Full Trace Events 2 | . 2 . Feedback Events . | . . . Feedback Blocked . | . . . Robot Schematics Acquired . | . . . Robots Built . | . . . Authchips . | . . . Time . | . . . Total Robot Build Rating . | . . . Part Schematics Acquired . | . . . Parts Built . | . . . Authchips . | . . . Time . | . . . Total Part Build Rating . | . . . Parts Repaired . | . . . Time . | . . . Parts Recycled . | . . . Recycled Matter . | . . . Retrieved Matter 44 | . 44 . Retrieved Components 4 | . 4 . Parts Scanalyzed . | . . . Part Schematics Acquired . | . . . Parts Damaged . | . . . Bothacking | -11 -10 -9 ------------ Run | Yrd Mat Mat Used RIF Installer . | . . . Robots Hacked . | . . . Non-combat . | . . . Combat . | . . . Robot Hacks Applied . | . . . Relay Couplers Released . | . . . Fabnet Peak Effective % . | . . . Robots Rewired . | . . . Allies Hacked . | . . . Hacks Repelled . | . . . Allies | -11 -10 -9 -------- Run | Yrd Mat Mat Total Allies . | . . . Largest Group . | . . . Highest-Rated Group . | . . . Highest-Rated Ally . | . . . Total Orders . | . . . Ally Attacks . | . . . Total Damage . | . . . Kills . | . . . Allies Corrupted . | . . . Allies Melted . | . . . Intel | -11 -10 -9 ------- Run | Yrd Mat Mat Robot Analysis Total . | . . . Derelict Logs Recovered . | . . . Drone Launches . | . . . Drone Recoveries . | . . . Exploration | -11 -10 -9 ------------- Run | Yrd Mat Mat Turns Passed 1771 | 72 1367 332 Spaces Moved 965 | 44 786 135 Core 29 | 7 15 7 Treads 386 | 37 349 . Legs 550 | . 422 128 Wheels . | . . . Hover . | . . . Flight . | . . . Fastest Speed 50 | 50 120 100 Average Speed 137 | 142 139 120 Slowest Speed 250 | 160 250 150 Overloaded Moves . | . . . Propulsion Burnouts . | . . . Robots Hopped . | . . . Cave-ins Triggered . | . . . Exploration Rate (%) 38 | 4 97 15 Regions Visited 2 Branch Regions . Pre-discovered Areas . | . . . Known Exits Taken . | . . . Unknown Exits Taken 2 | 1 1 . Scrap Searched . | . . . Spaces Dug . | . . . Terrain Destroyed . | . . . Melee . | . . . Projectile . | . . . AOE . | . . . Terrain Rammed . | . . . Walls Destroyed . | . . . Machines Disabled . | . . . Actions | -11 -10 -9 --------- Run | Yrd Mat Mat Total 1184 | 53 911 220 Wait 1 | . 1 . Move 963 | 43 785 135 Hop . | . . . Pick Up 33 | 7 18 8 Fast Attach . | . . . Attach 26 | 3 16 7 Detach . | . . . Swap 6 | . 4 2 Drop 7 | . 6 1 Fire 133 | . 79 54 Melee . | . . . Ram 5 | . . 5 Kick 9 | . 1 8 Crush 1 | . 1 . Escape Stasis . | . . . Rewire . | . . . Trap . | . . . Miscellaneous . | . . . Route ------- -11/Scrapyard -10/Materials (discovered 4 exits: *Mat x3 / *Min) -9/Materials (discovered 3 exits: Mat x3) History --------- Turn | Location | Event 4 | -11/Scrapyard | Discovered new exit (range 16) 73 | -11/Scrapyard | Entered Materials 307 | -10/Materials | Build established: Mutant 355 | -10/Materials | Discovered new exit (range 10) 426 | -10/Materials | Discovered new exit (range 15) 469 | -10/Materials | Identified exit to Mines 857 | -10/Materials | Core integrity fell below 50% 911 | -10/Materials | Core integrity fell below 20% 926 | -10/Materials | Lost 9 parts (2p4n1u2w) 964 | -10/Materials | Discovered new exit (range 14) 1229 | -10/Materials | Build established: Scavenger-Mutant 1337 | -10/Materials | Discovered new exit (range 13) 1440 | -10/Materials | Entered another Materials area 1440 | -9/Materials | Evolved 2 slots: Propulsion x1, Utility x1 1461 | -9/Materials | Identified exit to Materials 1649 | -9/Materials | Core integrity fell below 50% 1665 | -9/Materials | Lost 5 parts (1p2n2w) 1750 | -9/Materials | Core integrity fell below 20% 1772 | -9/Materials | Destroyed by Y-45 Defender with Heavy Assault Rifle Last Messages --------------- 01724_ Acquired Lgt. Ion Engine. 01727_ Electrolysis Chamber disabled. 01728_ Acquired Imp. Aluminum Leg. 01733_ Sml. Laser destroyed. 01747_ Aluminum Leg destroyed. 01750_ S-10 Pest destroyed. 01751_ Sml. Laser destroyed. 01756_ Kicked S-10 Pest. 01756_ Lgt. Ion Engine destroyed. 01757_ Kicked S-10 Pest. 01759_ Kicked S-10 Pest out of the way. 01761_ Kicked S-10 Pest. 01763_ S-10 Pest destroyed. 01764_ Aluminum Leg destroyed. 01764_ K-01 Serf collects debris. 01766_ Slammed into G-34 Mercenary. 01769_ K-01 Serf collects debris. 01771_ Slammed into Y-45 Defender. 01772_ Sml. Storage Unit destroyed. 01772_ Critical hit (Burn: +37). Map ----- +----------------------------------------------------+ | ?????????????????????????????????????????????????? | | ?????????????????????????????????????????????????? | | ?????????????????????????????????????????????????? | | ?????????????????????????????????????????????????? | | ????????????????????????????? ???????????????? | | ??????????????????????????? ???????????????? | | ???????????????????????#### ???????????????? | | ???????????????????????# ???????????????? | | ???????????????????????# #???????????????? | | ?????????????????####### !! ###?????????????? | | ?????????????????? ! #?????????????? | | ??????????????????# #?????????????? | | ??????????????????# #????????####?? | | ?????????????######^ ^ """ #????????# ## | | ??????????????[ """ #????????+ | | ??????????????[ "" #????????? ?# | | ??????????????] ! #?????????# #?# | | ???????????????? ###########+### | | ???????????????? * === +/=%=% # | | ???????????????????????#% === #####%! """% # | | ???????????????????????#= = [% #???# !%""""" # | | ???????????????????????# *% #???#% =""""" + | | ???????????????????????# m [ % #???#! """" # | | ???????????????????????## ######## ##### "" # | | ????????????????????????#%#??????# +% # | | ??????????????????????###@###????#+##### ! # | | ??????????????????????#%%%Y%#????" #???##+######## | | ??????????????????????#%% s*#????" #??? %[??????? | | ??????????????????????# g [=+ ???" ???""" "??????? | | ??????????????????????# k # ?? ?? """ ""?????? | | ??????????????????????# # ? ?# """ ""?????? | | ??????????????????????## ##? ?# ?????? | | ???????????????????????# #???####???? ?????? | | ???????????????????????# #???????????####??????? | | ???????????????????????# #?????????????????????? | | ???????????????????????# ?????????????????????? | | ???????????????????????# ###?????????????????????? | | ???????????????????????# #???????????????????????? | | ??????????????????????? #???????????????????????? | | ??????????????????????? #???????????????????????? | | ??????????????????????? ????????????????????????? | | ??????????????????????? ????????????????????????? | | ?????????????????????????????????????????????????? | | ?????????????????????????????????????????????????? | | ?????????????????????????????????????????????????? | | ?????????????????????????????????????????????????? | | ?????????????????????????????????????????????????? | | ?????????????????????????????????????????????????? | | ?????????????????????????????????????????????????? | | ?????????????????????????????????????????????????? | +----------------------------------------------------+ Best States ------------- Heat Dissipation 28 Energy Generation 14 Energy Capacity 250 Matter Stores 300 Matter Capacity 300 Sight Range 16 Terrain Scan Density 10 Evasion (%) 55 Recoil Reduction 2 Offensive Hacking 10 Item Schematics ----------------- None Robot Schematics ------------------ None Fabricated ------------ Nothing Alien Tech Used ----------------- None Achievements -------------- None Challenges ------------ None Game ------ Seed AssaultShadingConstruct Manual? 0 Play Time 00:20:07 Cumulative 3.8 hours Start 2024.03.31 @ 21:49:28 End 2024.03.31 @ 22:07:35 Sessions 1 Manual Loads 0 Difficulty Rogue Special Mode None Game No. 12 Rogue 9 Adventurer 3 Explorer 0 Win Type - Total 0 Types 0/0/0/0/0/0/0/0/0 Lore% 11 Gallery% 6 Achievement% 10 Wizard Run 0 Options --------- Layout 1 ASCII 0 Keyboard 0 Movement Mouse Keybinds 0 Fullscreen 1 Font 32/SmallcapsGlow Map View 77x35 Zoom Use 0% Tactical HUD 1 Map Filters NONE Filters NONE Steam 1 RUN: 819977e8-0529-4027-b3a8-92efb7cc63f4